Cogmind - Beta 10.2 @@@ ROGUE MODE // 2022.02.11 @ 20:40:51 Player: lumberblack Result: Destroyed by as-61252 with Assembled Rifle Performance ------------- Evolutions (0) 0 Regions Visited (4) 800 Robots Destroyed (37) 185 Value Destroyed (624) 624 Prototype IDs (27) 540 Alien Tech Used (0) 0 Bonus (219) 219 TOTAL SCORE: 2368 Bonus ------- Follower Combat Kills 155 Aligned with FarCom 300 Friendly Fire -236 Cogmind --------- Core Integrity 0/250 Matter 300/300 Energy 100/100 System Corruption 0% Temperature Cool (0) Movement Core (400) Ox7 Location -9/Mines Parts ------- > --- POWER (1) -------- (None) > --- PROPULSION (2) --- (None) > --- UTILITY (2) ------ (None) > --- WEAPON (2) ------- Firepult > --- INVENTORY (4) ---- Humpback Humpback Peak State ------------ > --- POWER ------------ Deuterium Engine > --- PROPULSION ------- Light Treads > --- UTILITY ---------- Humpback > --- WEAPON ----------- Firepult > --- INVENTORY -------- Disposable Heat Sink Medium Storage Unit Medium Storage Unit Medium Storage Unit High-capacity Storage Unit Humpback Humpback Humpback Large Battery Large Battery Advanced Sensor Array Experimental Sensor Array Weapon Shielding Weapon Shielding Improved Light Armor Plating Hacking Suite Trap Reconfigurator Heavy Particle Cannon Guided Plasma Cannon [Rating: 31] Favorites ----------- Power Ion Engine Engine Ion Engine Propulsion Light Treads Treads Light Treads Leg Aluminum Leg Wheel Wheel Utility High-capacity Storage Unit Device Disposable Heat Sink Storage High-capacity Storage Unit Weapon Heavy EM Pulse Gun Energy Gun Heavy EM Pulse Gun Energy Cannon Firepult Build | -11 -10 -10 -10 -9 ------- Run | Scr Mat Min Exi Min Slots Evolved . | . . . . . Power . | . . . . . Propulsion . | . . . . . Utility . | . . . . . Weapon . | . . . . . Parts Attached 32 | 3 20 6 2 1 Power 2 | . 1 1 . . Engine 2 | . 1 1 . . Core . | . . . . . Reactor . | . . . . . Propulsion 13 | 2 10 1 . . Treads 8 | 1 6 1 . . Leg . | . . . . . Wheel 5 | 1 4 . . . Hover . | . . . . . Flight . | . . . . . Utility 8 | 1 4 2 1 . Device 5 | 1 2 2 . . Storage 3 | . 2 . 1 . Processor . | . . . . . Hackware . | . . . . . Protection . | . . . . . Artifact . | . . . . . Weapon 9 | . 5 2 1 1 Energy Gun 8 | . 5 2 1 . Energy Cannon 1 | . . . . 1 Ballistic Gun . | . . . . . Ballistic Cannon . | . . . . . Launcher . | . . . . . Special Weapon . | . . . . . Impact Weapon . | . . . . . Slashing Weapon . | . . . . . Piercing Weapon . | . . . . . Special Melee Weapon . | . . . . . Unidentified Prototypes 2 | . 1 1 . . Parts Lost 5 | . . 1 . 4 Power 1 | . . . . 1 Propulsion 2 | . . . . 2 Utility 1 | . . . . 1 Weapon 1 | . . 1 . . Highest Loss Streak 3 | . . 1 . 3 Average Slot Usage (%) 95 | . 99 100 96 79 Engine 13 | . 14 14 14 13 Treads 24 | . 19 28 28 25 Wheel 2 | . 8 . . . Device 11 | . 13 14 10 . Storage 13 | . 14 14 13 13 Energy Gun 27 | . 27 28 28 25 Naked Turns . | . . . . . Heaviest Build 111 | 13 44 48 95 111 Greatest Support 40 | 20 40 40 40 40 Greatest Overweight (x) 33 | 3 4 1 2 33 Average Overweight (x) 1 | 1 2 1 1 2 Largest Inventory Capacity 24 | 6 12 12 24 24 Average Capacity 13 | 6 11 12 14 23 Most Carried 24 | 6 12 12 24 24 Average Carried 13 | 4 10 11 13 23 Final Capacity 24 | 6 12 12 24 4 Final Carried 24 | 4 12 12 24 4 Class Distribution -------------------- 79% | Mutant 20% | Hauler-Mutant Dominant Class ---------------- Mutant | -10/Materials Mutant | -10/Mines Mutant | -10/Exiles Hauler-Mutant | -9/Mines Resources | -11 -10 -10 -10 -9 ----------- Run | Scr Mat Min Exi Min Matter Collected 504 | 230 194 60 10 10 Remotely . | . . . . . Salvage Created 1129 | 122 650 141 . 216 Parts 70 | 7 37 10 . 16 Haulers Intercepted 2 | . 2 . . . Recyclers Shooed 6 | . 6 . . . Parts Field Recycled . | . . . . . Retrieved Matter . | . . . . . Parts Self-Destructed . | . . . . . Prevented . | . . . . . Kills | -11 -10 -10 -10 -9 ------- Run | Scr Mat Min Exi Min Combat Hostiles Destroyed 21 | . 9 3 . 9 Guns 17 | . 9 3 . 5 Cannons 2 | . . . . 2 AOE 2 | . . . . 2 Classes Destroyed 11 | 2 6 1 . 2 Tunneler 5 | 3 1 . . 1 Hauler 2 | . 2 . . . Recycler 2 | 1 1 . . . Mechanic 1 | . 1 . . . Operator 3 | . 3 . . . Watcher 3 | . 3 . . . Swarmer 10 | . 3 3 . 4 Grunt 7 | . 6 . . 1 Demolisher 2 | . . . . 2 Zionite 1 | . . 1 . . Assembled 2 | . . . . 2 Thug 1 | . . 1 . . Best Kill Streak 4 | 2 4 3 . 4 Combat Bots Only 4 | . 3 3 . 4 Max Kills in Single Turn 2 | 1 2 2 . 2 Gunslinging 1 | . 1 1 . . Exploded 2 | . . . . 2 Melee . | . . . . . Uniques/NPCs Destroyed . | . . . . . Combat | -11 -10 -10 -10 -9 -------- Run | Scr Mat Min Exi Min Damage Taken 1527 | . 178 103 . 1246 Core 252 | . 12 . . 240 Absorbed by Shields . | . . . . . Core Remaining (%) 100 | 100 . . . . Volleys Fired 90 | 6 57 9 . 18 Largest 2 | 2 2 2 . 2 Hottest 250 | 90 90 90 . 250 Shots Fired 177 | 12 114 18 . 33 Gun 174 | 12 114 18 . 30 Cannon 3 | . . . . 3 Launcher . | . . . . . Special . | . . . . . Kinetic . | . . . . . Thermal 111 | 12 96 . . 3 Explosive . | . . . . . Electromagnetic 66 | . 18 18 . 30 Robot Hit Streak 15 | 7 11 15 . 12 Robot Miss Streak 4 | 1 4 3 . 4 Penetration Max . | . . . . . Secondary Targets 5 | . 3 1 . 1 Max Gunslinging Chain 1 | . 1 1 . 1 Shots Hit Robots 112 | 7 75 12 . 18 Core Hits 59 | 5 32 5 . 17 Critical Hits . | . . . . . Critical Kills . | . . . . . Critical Parts Destroyed . | . . . . . Melee Attacks . | . . . . . Impact . | . . . . . Slashing . | . . . . . Piercing . | . . . . . Sneak Attacks . | . . . . . Combat Hostiles . | . . . . . Follow-up Attacks . | . . . . . Damage Inflicted 1732 | 82 979 164 . 507 Guns 1365 | 82 916 151 . 216 Cannons 98 | . . . . 98 Explosions 196 | . 31 . . 165 Melee . | . . . . . Ramming 73 | . 32 13 . 28 Kinetic . | . . . . . Thermal 1065 | 82 720 . . 263 Explosive . | . . . . . Electromagnetic 594 | . 227 151 . 216 Impact . | . . . . . Slashing . | . . . . . Piercing . | . . . . . Highest Corruption . | . . . . . Average Corruption . | . . . . . Corruption Purged . | . . . . . Overload Shots . | . . . . . Overflow Damage 7 | . . . . 7 Projectiles . | . . . . . Explosions 7 | . . . . 7 Melee . | . . . . . Knockbacks 1 | . 1 . . . Impact 1 | . 1 . . . Kinetic . | . . . . . Secondary . | . . . . . Self-Inflicted Damage 63 | . . . . 63 Shots 5 | . . . . 5 Rammed 19 | . 9 3 . 7 Targets Rammed 19 | . 9 3 . 7 Kicked . | . . . . . Crushed . | . . . . . Highest Temperature 478 | 90 72 130 . 478 Average Temperature 88 | 38 27 66 . 170 Received Heat Transfer 96 | . 78 . . 18 Effects 2 | . . . . 2 Shutdowns 1 | . . . . 1 Interference 1 | . . . . 1 Siege Activations . | . . . . . Robots Corrupted . | . . . . . Combat Hostiles . | . . . . . Parts Fried 1 | . 1 . . . Impact Corruptions . | . . . . . Robots Melted . | . . . . . Combat Hostiles . | . . . . . Parts Melted 3 | . 2 . . 1 Heat Transferred 3418 | 211 1847 . . 1360 Parts Sabotaged . | . . . . . Parts Stolen . | . . . . . Parts Stripped . | . . . . . Power Chain Reactions 1 | . 1 . . . Missiles Intercepted . | . . . . . Alert | -11 -10 -10 -10 -9 ------- Run | Scr Mat Min Exi Min Peak Influence 244 | 20 244 118 . 184 Initial 58 | . 13 58 . . Average 88 | 9 124 64 . 78 Maximum Alert Level 1 | . 1 . . . Low Security (%) 95 | 100 89 100 . 100 Level 1 4 | . 10 . . . Level 2 . | . . . . . Level 3 . | . . . . . Level 4 . | . . . . . Level 5 . | . . . . . High Security . | . . . . . Max Security . | . . . . . Squads Dispatched 4 | . 4 . . . Investigation 1 | . 1 . . . Extermination . | . . . . . Reinforcement 3 | . 3 . . . Assault . | . . . . . Garrison . | . . . . . Intercept . | . . . . . Construction Impeded . | . . . . . Haulers Reinforced . | . . . . . Stealth | -11 -10 -10 -10 -9 --------- Run | Scr Mat Min Exi Min Distress Signals 1 | . 1 . . . Communications Jammed . | . . . . . Distress Signals . | . . . . . Times Spotted 52 | . 29 4 . 19 Peak Tracking Total 12 | . 5 3 . 12 Tactical Retreats 2 | . 1 . . 1 Traps | -11 -10 -10 -10 -9 ------- Run | Scr Mat Min Exi Min Traps Triggered 1 | . 1 . . . Indirectly . | . . . . . Trap Hack Attempts . | . . . . . Triggered . | . . . . . Disarmed . | . . . . . Reprogrammed . | . . . . . Reused . | . . . . . Traps Extracted . | . . . . . Installed . | . . . . . Triggered . | . . . . . Machines | -11 -10 -10 -10 -9 ---------- Run | Scr Mat Min Exi Min Machines Disabled 2 | . 1 . . 1 Max in Single Turn 1 | . 1 . . 1 Machines Sabotaged . | . . . . . Garrisons Compromised . | . . . . . Overloaded Fab Kills . | . . . . . Fab Network Shutdowns . | . . . . . Hacking | -11 -10 -10 -10 -9 --------- Run | Scr Mat Min Exi Min Machines Accessed 8 | . 6 1 1 . Terminals 4 | . 4 . . . Fabricators . | . . . . . Repair Stations 1 | . 1 . . . Recycling Units 1 | . 1 . . . Scanalyzers . | . . . . . Garrison Access . | . . . . . Total Hacks 23 | . 21 1 1 . Successful 13 | . 11 1 1 . Failed 9 | . 9 . . . Catastrophic 1 | . 1 . . . Database Lockouts 1 | . 1 . . . Manual 14 | . 13 . 1 . Terminals 16 | . 16 . . . Fabricators . | . . . . . Repair Stations 2 | . 2 . . . Recycling Units 3 | . 3 . . . Scanalyzers . | . . . . . Garrison Access . | . . . . . Terminal Hacks 7 | . 5 1 1 . Robot Analysis 2 | . 2 . . . Prototype ID Bank 1 | . 1 . . . Open Door 1 | . . 1 . . Terminal Index 1 | . 1 . . . Patrol Status 1 | . 1 . . . EX-Prototype ID Bank 1 | . . . 1 . Fabricator Hacks . | . . . . . Repair Station Hacks 2 | . 2 . . . Scan Component 1 | . 1 . . . Repair 1 | . 1 . . . Recycling Unit Hacks 1 | . 1 . . . Retrieve Components 1 | . 1 . . . Scanalyzer . | . . . . . Garrison Access Hacks . | . . . . . Unauthorized Hacks 3 | . 3 . . . Terminals 1 | . 1 . . . Track 1 | . 1 . . . Fabricators . | . . . . . Repair Stations . | . . . . . Recycling Units 2 | . 2 . . . Recyclers 1 | . 1 . . . Tunnel 1 | . 1 . . . Scanalyzers . | . . . . . Garrison Access . | . . . . . Data Cores Recovered . | . . . . . Used . | . . . . . Hacking Detections 5 | . 5 . . . Full Trace Events . | . . . . . Feedback Events . | . . . . . Feedback Blocked . | . . . . . Robot Schematics Acquired . | . . . . . Robots Built . | . . . . . Matter . | . . . . . Time . | . . . . . Total Robot Build Rating . | . . . . . Part Schematics Acquired . | . . . . . Parts Built . | . . . . . Matter . | . . . . . Time . | . . . . . Total Part Build Rating . | . . . . . Parts Repaired 1 | . 1 . . . Time 13 | . 13 . . . Parts Recycled . | . . . . . Recycled Matter . | . . . . . Retrieved Matter . | . . . . . Retrieved Components 9 | . 9 . . . Parts Scanalyzed . | . . . . . Part Schematics Acquired . | . . . . . Parts Damaged . | . . . . . Bothacking | -11 -10 -10 -10 -9 ------------ Run | Scr Mat Min Exi Min Used RIF Installer . | . . . . . Robots Hacked . | . . . . . Non-combat . | . . . . . Combat . | . . . . . Robot Hacks Applied . | . . . . . Relay Couplers Released . | . . . . . Robots Rewired . | . . . . . Allies Hacked . | . . . . . Hacks Repelled . | . . . . . Allies | -11 -10 -10 -10 -9 -------- Run | Scr Mat Min Exi Min Total Allies 3 | . . 2 . 1 Largest Group 2 | . . 2 . 1 Highest-Rated Group 38 | . . 38 . 31 Highest-Rated Ally 31 | . . 31 . 31 Total Orders . | . . . . . Ally Attacks 29 | . . 17 . 12 Total Damage 485 | . . 317 . 168 Kills 5 | . . 3 . 2 Allies Corrupted . | . . . . . Allies Melted . | . . . . . Intel | -11 -10 -10 -10 -9 ------- Run | Scr Mat Min Exi Min Robot Analysis Total 2 | . 2 . . . Derelict Logs Recovered 2 | . . 2 . . Drone Launches . | . . . . . Drone Recoveries . | . . . . . Exploration | -11 -10 -10 -10 -9 ------------- Run | Scr Mat Min Exi Min Turns Passed 3610 | 70 1079 1118 773 570 Spaces Moved 1822 | 19 619 573 406 205 Core 3 | 2 . . . 1 Treads 1367 | . 184 573 406 204 Legs 4 | 4 . . . . Wheels 448 | 13 435 . . . Hover . | . . . . . Flight . | . . . . . Fastest Speed 90 | 90 90 180 160 200 Average Speed 165 | 107 127 180 183 208 Slowest Speed 1700 | 200 180 180 200 1700 Overloaded Moves . | . . . . . Propulsion Burnouts . | . . . . . Robots Hopped . | . . . . . Cave-ins Triggered . | . . . . . Exploration Rate (%) 57 | 2 76 97 71 40 Regions Visited 4 Branch Regions 3 Pre-discovered Areas 1 | . 1 . . . Known Exits Taken . | . . . . . Unknown Exits Taken 4 | 1 1 1 1 . Scrap Searched 4 | . . 2 . 2 Spaces Dug . | . . . . . Terrain Destroyed 24 | . 3 . . 21 Melee . | . . . . . Projectile 4 | . . . . 4 AOE 20 | . 3 . . 17 Terrain Rammed . | . . . . . Walls Destroyed . | . . . . . Machines Disabled . | . . . . . Actions | -11 -10 -10 -10 -9 --------- Run | Scr Mat Min Exi Min Total 2218 | 57 787 642 439 293 Wait 162 | 25 42 39 . 56 Move 1818 | 18 618 572 405 205 Hop . | . . . . . Pick Up 52 | 1 20 6 23 2 Fast Attach 11 | 2 8 . 1 . Attach 5 | 1 1 1 1 1 Detach 1 | . 1 . . . Swap 16 | . 11 5 . . Drop 44 | 4 20 7 9 4 Fire 90 | 6 57 9 . 18 Melee . | . . . . . Ram 1 | . . . . 1 Kick . | . . . . . Crush 18 | . 9 3 . 6 Escape Stasis . | . . . . . Rewire . | . . . . . Trap . | . . . . . Miscellaneous . | . . . . . Route ------- -11/Scrapyard -10/Materials (discovered 4 exits: [*Mat x2] / *Min x2) -10/Mines (discovered 3 exits: [*Mat x2] / *Exi) -10/Exiles -9/Mines History --------- Turn | Location | Event 11 | -11/Scrapyard | Discovered new exit (range 2) 71 | -11/Scrapyard | Entered Materials 95 | -10/Materials | Discovered new exit (range 6) 317 | -10/Materials | Build established: Mutant 407 | -10/Materials | Central database locked down 457 | -10/Materials | Discovered new exit (range 9) 483 | -10/Materials | Repaired Med. Laser 757 | -10/Materials | Discovered new exit (range 12) 940 | -10/Materials | Discovered new exit (range 11) 1150 | -10/Materials | Entered Mines 1195 | -10/Mines | Learned Materials trap positions 1462 | -10/Mines | Learned Materials interactive machine intel 1485 | -10/Mines | Found a damaged Exp. Sensor Array with a note attached 1490 | -10/Mines | Found Prototype Device 1491 | -10/Mines | Identified Exp. Sensor Array 1657 | -10/Mines | Discovered new exit (range 13) 1688 | -10/Mines | Discovered new exit (range 9) 1921 | -10/Mines | Met a Derelict who couldn't figure out how to use a Trap Extractor 2123 | -10/Mines | Deemed a non-threat by the Exiles lab entrance 2261 | -10/Mines | Discovered new exit (range 5) 2268 | -10/Mines | Entered Exiles 2313 | -10/Exiles | Met 8R-AWN 2342 | -10/Exiles | Met EX-HEX 2396 | -10/Exiles | Met EX-BIN 2418 | -10/Exiles | Aligned with FarCom system 2420 | -10/Exiles | Given EX-Vault access code 2463 | -10/Exiles | Opened EX-Vault 2479 | -10/Exiles | Found Gui. Plasma Cannon 2489 | -10/Exiles | Found Trap Reconfigurator 2497 | -10/Exiles | Found Firepult 2537 | -10/Exiles | Warned to stay clear of 0b10 Research branches 2589 | -10/Exiles | Met EX-DEC 3019 | -10/Exiles | Discovered new exit (range 14) 3041 | -10/Exiles | Stole three prototypes: Trap Reconfigurator, Gui. Plasma Cannon, Firepult 3041 | -10/Exiles | Entered Mines 3167 | -9/Mines | Build established: Hauler-Mutant 3320 | -9/Mines | Received a Mining Laser from a helpful Derelict 3534 | -9/Mines | Assembled infested the area 3578 | -9/Mines | Core integrity fell below 50% 3591 | -9/Mines | Core integrity fell below 20% 3611 | -9/Mines | Destroyed by as-61252 with Assembled Rifle Last Messages --------------- 03561_ The unstable cave ceiling collapses. 03564_ Slammed into as-31285. 03567_ Slammed into as-61252. 03570_ Slammed into as-31285. 03572_ Slammed into as-00609. 03574_ The unstable cave ceiling collapses. 03575_ Slammed into as-61252. 03577_ Deuterium Engine destroyed. 03577_ as-31285 destroyed. 03577_ Lgt. Treads destroyed. 03577_ Destroyed Lgt. Treads. 03577_ as-00609 destroyed. 03579_ as-90154 heat damages Asb. Hover Unit. 03579_ Slammed into as-61252. 03588_ The unstable cave ceiling collapses. 03592_ 13 Matter crushed. 03593_ as-90154 destroyed. 03597_ Humpback destroyed. 03605_ The unstable cave ceiling collapses. 03606_ Trap Reconfigurator crushed. Map ----- +----------------------------------------------------+ | ????????????????????????????????????? | | ????????????????????????????????????? | | ????????????????????????????????????? | | ?????????????? ?????????????????????? | | ?????????????? ???????????????????? | | ?????????????? ????????????????? | | ????????????? ????????????????? | | ????????????? ?????????????????? | | ????????????? ?????????????????? | | ????????????? ??????????????????? | | ????????????? ??????????????????? | | ????????????? ???????????????????? | | ????????????? #???????????????????? | | ???????????## #???????????????????? | | ???????##### a ???????????????####?? | | ???????# #??????????????## ##? | | ???????? #???#######????# #? | | ?????????? #????# #????# #? | | ???????????# #?????# #???## ## | | ???????????# #?????#! # #??## # | | ???????###?#%#?????#%*# #??# """ | | ???????# # #?????# !# #### """ | | ???????# # ##????#! # """ | | ???????# !a]###### | | ???????# !%%%# ## ###### | | ???????# #!@!! # ##??####### | | ???????## ]#!!!## #????????? | | ???????# !!!! #????????? | | ???????## %% #???????? | | ???????# # # ????? | | ???????####### ;; ????? | | ??????????????# ;# ???? | | ???????????????# ## ### ###???? | | ????????????????##########?? #?????? | | ????????????????????????????? #?????? | | ????????????????????????????????????? | | ????????????????????????????????????? | | ????????????????????????????????????? | | ???????????????????s????????????????? | | ????????????????????????????????????? | | ????????????????????ss??????????????? | | ????????????????????????????????????? | | ????????????????????????????????????? | | ????????????????????????????????????? | | ????????????????????????????????????? | | ????????????????????????????????????? | | | | | | | | | +----------------------------------------------------+ Best States ------------- Heat Dissipation 35 Coolant Potential 50 Energy Generation 14 Energy Capacity 275 Matter Stores 300 Matter Capacity 300 Sight Range 16 Terrain Scan Range 16 Terrain Scan Density 10 Evasion (%) 42 Recoil Reduction 2 Item Schematics ----------------- None Robot Schematics ------------------ None Fabricated ------------ Nothing Alien Tech Used ----------------- None Achievements -------------- None Challenges ------------ None Game ------ Seed TrackerRiotGreatsword Manual? 0 Play Time 00:26:29 Cumulative 337.6 hours Start 2022.02.11 @ 20:08:07 End 2022.02.11 @ 20:40:51 Sessions 1 Manual Loads 0 Difficulty Rogue Special Mode None Game No. 287 Rogue 287 Adventurer 0 Explorer 0 Win Type - Total 6 Types 5/0/1/0/0/0/0/0/0 Lore% 55 Gallery% 78 Achievement% 62 Wizard Run 0 Options --------- ASCII 0 Keyboard 0 Movement Numpad Keybinds 0 Fullscreen 2 Font 18/TerminusBold Map View 76x50 Tactical HUD 1 Map Filters NONE Filters NONE Steam 1 RUN: 12e5f81e-01ce-41fd-ae02-c791b0c0d0ae